fUST/lending_fUST_20251217
["ID","MTS","AMOUNT","RATE_DAILY","PERIOD"]
[398808356,1765911027200,-251.089337,0.00038356,120]
[398808357,1765911027249,-251.089337,0.00038356,120]
[398808358,1765911027297,-251.089337,0.00038356,120]
[398808359,1765911027345,-251.089337,0.00038356,120]
[398808360,1765911027392,-251.089337,0.00038356,120]
[398808361,1765911027445,-251.089337,0.00038356,120]
[398808362,1765911027493,-251.089337,0.00038356,120]
[398808363,1765911027540,-251.089337,0.00038356,120]
[398808364,1765911027587,-251.089337,0.00038356,120]
[398808365,1765911027633,-251.089337,0.00038356,120]
[398808366,1765911027679,-251.089337,0.00038356,120]
[398808367,1765911027726,-251.089337,0.00038356,120]
[398808368,1765911027773,-251.089337,0.00038356,120]
[398808369,1765911027819,-251.089337,0.00038356,120]
[398808370,1765911027866,-251.089337,0.00038356,120]
[398808371,1765911027911,-251.089337,0.00038356,120]
[398808372,1765911027955,-251.08934,0.00038356,120]
[398808373,1765911028000,-302.2567273,0.00038366,30]
[398808374,1765911028046,-187.3748753,0.00038366,30]
[398808375,1765911028093,-415.38,0.00038413,120]
[398808376,1765911028139,-1336.9286316,0.00038473,120]
[398808377,1765911028190,-415.38,0.00038513,120]
[398808378,1765911028239,-415.38,0.00038613,120]
[398808379,1765911028287,-154.128,0.00038638,52]
[398808380,1765911028334,-162.0,0.000387,120]
[398808381,1765911028378,-520.97876738,0.000387,120]
[398808382,1765911028427,-415.38,0.00038713,120]
[398808383,1765911028474,-253.0,0.00038745,120]
[398808384,1765911028525,-169.0,0.00038745,120]
[398808385,1765911028569,-170.0,0.00038745,120]
[398808386,1765911028616,-415.38,0.00038813,120]
[398808387,1765911028668,-500.38,0.00038904,37]
[398808388,1765911028723,-415.38,0.00038913,120]
[398808389,1765911028769,-200.0,0.00039,120]
[398808390,1765911028812,-4434.48294751,0.00039,120]
[398808391,1765911028857,-9432.0849878,0.00039,30]
[398808392,1765911028902,-1000.0,0.00039,120]
[398808393,1765911028944,-400.0,0.00039,120]
[398808394,1765911028991,-415.38,0.00039013,120]
[398808395,1765911029039,-1303.31,0.00039041,120]
[398808396,1765911029089,-5782.762881,0.00039041,120]
[398808397,1765911029133,-5782.762881,0.00039041,120]
[398808398,1765911029178,-5782.762881,0.00039041,120]
[398808399,1765911029225,-5782.762881,0.00039041,120]
[398808400,1765911029269,-5782.762881,0.00039041,120]
[398808401,1765911029315,-5782.762881,0.00039041,120]
[398808402,1765911029358,-5782.762881,0.00039041,120]
[398808403,1765911029404,-5782.762881,0.00039041,120]
[398808404,1765911029449,-5782.762881,0.00039041,120]
[398808405,1765911029494,-5782.762881,0.00039041,120]
[398808406,1765911029537,-5782.762881,0.00039041,120]
[398808407,1765911029579,-5782.762881,0.00039041,120]
[398808408,1765911029623,-5782.762881,0.00039041,120]
[398808409,1765911029666,-5782.762881,0.00039041,120]
[398808410,1765911029708,-5782.762881,0.00039041,120]
[398808411,1765911029750,-5782.762881,0.00039041,120]
[398808412,1765911029793,-5782.762881,0.00039041,120]
[398808413,1765911029836,-5782.762881,0.00039041,120]
[398808414,1765911029878,-5782.762881,0.00039041,120]
[398808415,1765911029921,-5782.7628737,0.00039041,120]
[398808416,1765911029964,-200.0,0.0003911,51]
[398808417,1765911030009,-415.38,0.00039113,120]
[398808418,1765911030055,-200.0,0.0003912,120]
[398808419,1765911030293,-415.38,0.00039213,120]
[398808420,1765911030337,-162.0,0.000393,120]
[398808421,1765911030383,-415.38,0.00039313,120]
[398808422,1765911030428,-415.38,0.00039413,120]
[398808423,1765911030475,-175.0,0.00039425,120]
[398808424,1765911030521,-415.38,0.00039513,120]
[398808425,1765911030567,-415.38,0.00039613,120]
[398808426,1765911030608,-415.38,0.00039713,120]
[398808427,1765911030651,-1303.31,0.00039726,120]
[398808428,1765911030691,-500.38,0.00039726,38]
[398808429,1765911030732,-5799.0,0.00039745,20]
[398808430,1765911030775,-415.38,0.00039813,120]
[398808431,1765911030816,-210.62092,0.000399,120]
[398808432,1765911030856,-1040.10247,0.000399,120]
[398808433,1765911030896,-162.0,0.000399,120]
[398808434,1765911030943,-200.0,0.000399,120]
[398808435,1765911030984,-415.38,0.00039913,120]
[398808436,1765911031028,-1000.0,0.0004,20]
[398808437,1765911031071,-199.999999,0.0004,120]
[398808438,1765911031114,-1135.58558246,0.0004,30]
[398808439,1765911031159,-360.70367484,0.0004,120]
[398808440,1765911031202,-152.57791151,0.0004,120]
[398808441,1765911031246,-874.88932399,0.0004,120]
[398808442,1765911031292,-1777.66127934,0.0004,120]
[398808443,1765911031341,-904.33592787,0.0004,120]
[398808444,1765911031384,-226.24443305,0.0004,100]
[398808445,1765911031445,-1099.59226877,0.0004,120]
[398808446,1765911031498,-209.07144825,0.0004,120]
[398808447,1765911031543,-443.615634,0.0004,120]
[398808448,1765911031587,-300.0,0.0004,120]
[398808449,1765911031634,-508.53434434,0.0004,120]
[398808450,1765911031678,-630.371,0.0004,120]
[398808451,1765911031722,-1000.0,0.0004,120]
[398808452,1765911031765,-1496802.24899986,0.0004,120]
[398808470,1765911037306,-585.50860064,0.000104,2]
[398808471,1765911037319,-1043.77747175,0.000104,2]
[398808472,1765911037331,-1908.60858147,0.000104,2]
[398808473,1765911037340,-379.80927034,0.00010473,2]
[398808474,1765911037349,-800.0,0.00010756,2]
[398808475,1765911037359,-800.0,0.00010757,2]
[398808476,1765911037369,-800.0,0.00010763,2]
[398808477,1765911037378,-929.96631016,0.00010763,2]
[398808478,1765911037389,-800.0,0.00010772,2]
[398808479,1765911037401,-800.0,0.00010779,2]
[398808480,1765911037413,-800.0,0.00010786,2]
[398808481,1765911037424,-500.0,0.00010786,2]
[398808482,1765911037433,-423.39,0.00010788,2]
[398808483,1765911037443,-800.0,0.00010789,2]
[398808484,1765911037453,-800.0,0.0001079,2]
[398808485,1765911037462,-800.0,0.00010793,2]
[398808486,1765911037472,-800.0,0.00010807,2]
[398808487,1765911037483,-800.0,0.00010837,2]
[398808488,1765911037493,-800.0,0.00010842,2]
[398808489,1765911037502,-800.0,0.00010851,2]
[398808490,1765911037511,-710.6094,0.00010854,2]
[398808491,1765911037521,-30449.7773428,0.00010859,2]
[398808505,1765911038583,-3687.66744814,0.00010859,2]
[398808506,1765911038596,-2326.24435221,0.00010859,2]
[398808507,1765911038699,-3257.86920441,0.00010859,2]
[398808508,1765911038719,-8410.32270122,0.00010859,2]
[398808509,1765911038754,-1393.48827225,0.00010859,2]
[398808510,1765911038766,-711.23091884,0.00010859,2]
[398808565,1765911040760,-690.42,0.00010859,2]
[398808568,1765911040771,-10983.22876073,0.00010859,2]
[398808573,1765911040814,-42240.01072621,0.00010859,2]
[398808576,1765911040826,-658.05590408,0.00010859,2]
[398808578,1765911040837,-9161.93491065,0.00010859,2]
[398808859,1765911043762,-315.98676429,0.00010859,2]
[398809125,1765911046704,-173.36331058,0.00010783,2]
[398809126,1765911046713,-263.00340237,0.00010859,2]
[398809165,1765911100549,150.0,7.081e-05,2]
[398809166,1765911101039,150.0,7.418e-05,2]
[398809167,1765911101406,150.0,7.755e-05,2]
[398809169,1765911102189,150.0,8.093e-05,2]
[398809170,1765911102602,150.0,8.43e-05,2]
[398809303,1765911515768,4192.0,9.64e-05,2]
[398809306,1765911553310,150.0,7.251e-05,2]
[398809307,1765911553718,150.0,7.597e-05,2]
[398809308,1765911554103,150.0,7.942e-05,2]
[398809309,1765911554494,150.0,8.287e-05,2]
[398809310,1765911554913,150.0,8.633e-05,2]
[398809311,1765911555370,150.0,8.978e-05,2]
[398809312,1765911555761,150.0,9.323e-05,2]
[398809319,1765911622217,150.0,7.17e-05,2]
[398809320,1765911622660,150.0,7.512e-05,2]
[398809576,1765912231622,-500.0,0.00010483,2]
[398809577,1765912231631,-150.0,0.00010483,2]
[398809579,1765912231641,-250.0,0.00010483,2]
[398809580,1765912231651,-300.82492354,0.00010607,2]
[398809581,1765912231661,-500.0,0.0001062,2]
[398809582,1765912231670,-150.0,0.0001062,2]
[398809583,1765912231679,-154.127,0.00010642,2]
[398809584,1765912231689,-165.10627697,0.00010682,2]
[398809585,1765912231699,-150.0,0.00010684,2]
[398809586,1765912231708,-500.0,0.00010684,2]
[398809587,1765912231718,-500.0,0.00010684,2]
[398809588,1765912231727,-150.0,0.00010684,2]
[398809589,1765912231736,-300.0,0.00010716,2]
[398809590,1765912231747,-300.0,0.00010716,2]
[398809591,1765912231757,-1200.0,0.00010717,2]
[398809592,1765912231766,-500.0,0.00010755,2]
[398809593,1765912231778,-500.0,0.00010755,2]
[398809594,1765912231788,-500.0,0.00010755,2]
[398809595,1765912231798,-161.34029698,0.00010755,2]
[398809596,1765912231807,-500.0,0.00010755,2]
[398809597,1765912231817,-500.0,0.00010755,2]
[398809598,1765912231827,-500.0,0.00010755,2]
[398809599,1765912231836,-413.12348068,0.00010755,2]
[398809600,1765912231846,-500.0,0.00010755,2]
[398809601,1765912231856,-500.0,0.00010755,2]
[398809602,1765912231866,-500.0,0.00010755,2]
[398809603,1765912231875,-500.0,0.00010755,2]
[398809604,1765912231884,-500.0,0.00010755,2]
[398809605,1765912231894,-500.0,0.00010755,2]
[398809606,1765912231903,-500.0,0.00010755,2]
[398809607,1765912231913,-500.0,0.00010755,2]
[398809608,1765912231922,-500.0,0.00010755,2]
[398809609,1765912231932,-500.0,0.00010755,2]
[398809610,1765912231941,-500.0,0.00010755,2]
[398809611,1765912231950,-500.0,0.00010755,2]
[398809612,1765912231960,-500.0,0.00010755,2]
[398809613,1765912231969,-500.0,0.00010755,2]
[398809614,1765912231978,-500.0,0.00010755,2]
[398809615,1765912231988,-500.0,0.00010755,2]
[398809616,1765912231997,-500.0,0.00010755,2]
[398809617,1765912232007,-500.0,0.00010755,2]
[398809618,1765912232016,-500.0,0.00010755,2]
[398809619,1765912232026,-450.06751777,0.00010755,2]
[398809620,1765912232035,-500.0,0.00010755,2]
[398809621,1765912232045,-500.0,0.00010755,2]
[398809622,1765912232054,-500.0,0.00010755,2]
[398809623,1765912232063,-500.0,0.00010755,2]
[398809624,1765912232072,-500.0,0.00010755,2]
[398809625,1765912232082,-500.0,0.00010755,2]
[398809626,1765912232091,-500.0,0.00010755,2]
[398809627,1765912232101,-500.0,0.00010755,2]
[398809628,1765912232110,-500.0,0.00010755,2]
[398809629,1765912232120,-500.0,0.00010755,2]
[398809630,1765912232129,-500.0,0.00010755,2]
[398809631,1765912232139,-500.0,0.00010755,2]
[398809632,1765912232148,-454.51647031,0.00010755,2]
[398809633,1765912232158,-500.0,0.00010755,2]
[398809634,1765912232168,-500.0,0.00010755,2]
[398809635,1765912232177,-500.0,0.00010755,2]
[398809636,1765912232186,-500.0,0.00010755,2]
[398809637,1765912232195,-500.0,0.00010755,2]
[398809638,1765912232204,-500.0,0.00010755,2]
[398809639,1765912232214,-500.0,0.00010755,2]
[398809640,1765912232224,-500.0,0.00010755,2]
[398809641,1765912232233,-500.0,0.00010755,2]
[398809642,1765912232243,-500.0,0.00010755,2]
[398809643,1765912232253,-500.0,0.00010757,2]
[398809644,1765912232262,-205.15,0.00010757,2]
[398809645,1765912232271,-500.0,0.00010758,2]
[398809646,1765912232280,-57412.87193393,0.00010759,2]
[398809647,1765912232348,-401.61783015,0.00010759,2]
[398809648,1765912232359,-2653.06756959,0.00010759,2]
[398809652,1765912237733,-1586.21195227,0.00010759,2]
[398809653,1765912237745,-2352.00076887,0.00010759,2]
[398809654,1765912237756,-446.94503474,0.00010759,2]
[398809655,1765912237809,-134441.07248117,0.00010759,2]
[398809701,1765912239924,-262.0624995,0.00010759,2]
[398809708,1765912239978,-374.08989249,0.00010759,2]
[398809985,1765912242852,-150.0,0.00010483,2]
[398809988,1765912242863,-500.0,0.00010483,2]
[398809990,1765912242874,-500.0,0.00010483,2]
[398809992,1765912242883,-85.17087944,0.0001062,2]
[398810273,1765912245800,-201.40581021,0.00010483,2]
[398810274,1765912245809,-71.02188247,0.0001062,2]
[398810275,1765912245819,-408.47988071,0.0001062,2]
[398810276,1765912245831,-132.40465181,0.0001062,2]
[398810277,1765912245840,-530.99549198,0.0001062,2]
[398810278,1765912245851,-108.50644023,0.00010759,2]
[398810279,1765912245863,-1088.75747209,0.00010759,2]
[398810281,1765912245874,-1098.75,0.00010759,2]
[398810285,1765912245902,-330.0,0.00010759,2]
[398810504,1765912262043,215.59,9.6e-05,2]
[398810548,1765912329431,150.0,7.295e-05,2]
[398810549,1765912329832,184.74,7.643e-05,2]
[398810550,1765912330234,277.11,7.99e-05,2]
[398810551,1765912331229,369.48,8.338e-05,2]
[398810552,1765912331275,461.85,8.685e-05,2]
[398810553,1765912331416,554.22,9.032e-05,2]
[398810554,1765912331821,646.59,9.38e-05,2]
[398810556,1765912382675,158.69,9.6e-05,2]
[398810557,1765912403435,353.8242399,9.528e-05,2]
[398810558,1765912407518,150.0,7.001e-05,2]
[398810559,1765912407913,150.0,7.334e-05,2]
[398810560,1765912408310,176.16,7.667e-05,2]
[398810561,1765912408721,234.88,8.001e-05,2]
[398810562,1765912408828,5893.5715425,9.543e-05,2]
[398810563,1765912409113,23.3042176,8.334e-05,2]
[398810564,1765912409139,270.2957824,8.334e-05,2]
[398810565,1765912409512,352.32,8.668e-05,2]
[398810566,1765912409917,411.04,9.001e-05,2]
[398810567,1765912410356,469.76,9.334e-05,2]
[398810580,1765912445211,158.69,9.6e-05,2]
[398810583,1765912483740,150.0,7.421e-05,2]
[398810584,1765912484131,150.0,7.775e-05,2]
[398810585,1765912484559,150.0,8.128e-05,2]
[398810586,1765912484970,150.0,8.481e-05,2]
[398810587,1765912485364,151.19,8.835e-05,2]
[398810588,1765912485758,181.43,9.188e-05,2]
[398810589,1765912486163,211.67,9.542e-05,2]
[398810594,1765912504814,158.69,9.6e-05,2]
[398810624,1765912555331,150.0,7.518e-05,2]
[398810625,1765912555745,150.0,7.876e-05,2]
[398810626,1765912556137,150.0,8.234e-05,2]
[398810627,1765912556542,150.0,8.592e-05,2]
[398810628,1765912556955,150.0,8.95e-05,2]
[398810629,1765912557359,150.0,9.308e-05,2]
[398810636,1765912572254,158.69,9.6e-05,2]
[398810660,1765912623334,150.0,7.737e-05,2]
[398810661,1765912623759,150.0,8.106e-05,2]
[398810663,1765912624793,158.69,9.6e-05,2]
[398810686,1765912683977,158.69,9.6e-05,2]
[398810748,1765912743760,158.68,9.6e-05,2]
[398810829,1765912880927,150.0,7.043e-05,2]
[398810830,1765912881667,150.0,7.379e-05,2]
[398810831,1765912881764,150.0,7.714e-05,2]
[398810864,1765912946252,150.0,7.041e-05,2]
[398810865,1765912946652,150.0,7.377e-05,2]
[398810866,1765912947051,150.0,7.712e-05,2]
[398810867,1765912947931,150.0,8.047e-05,2]
[398810868,1765912948365,150.0,8.383e-05,2]
[398810869,1765912948779,150.0,8.718e-05,2]
[398810872,1765912953343,1477.4056635,9.624e-05,2]
[398810874,1765912955200,578.61901195,9.244e-05,2]
[398810876,1765912957624,1041.51422152,9.244e-05,2]
[398810877,1765912960347,752.63532063,9.244e-05,2]
[398810878,1765912960369,1098.94551762,9.244e-05,2]
[398810895,1765913013369,150.0,7.326e-05,2]
[398810896,1765913014250,150.0,7.675e-05,2]
[398810897,1765913014672,196.46,8.024e-05,2]
[398810898,1765913015415,261.95,8.373e-05,2]
[398810899,1765913015583,327.43,8.722e-05,2]
[398810900,1765913015877,392.92,9.07e-05,2]
[398810901,1765913016297,458.41,9.419e-05,2]
[398810911,1765913043370,155.99,9.6e-05,2]
[398810931,1765913088805,150.0,7.474e-05,2]
[398810932,1765913089229,150.0,7.83e-05,2]
[398810933,1765913089621,212.17,8.186e-05,2]
[398810934,1765913090022,282.9,8.542e-05,2]
[398810935,1765913090434,353.62,8.897e-05,2]
[398810937,1765913091341,424.35,9.253e-05,2]
[398810938,1765913091754,495.07,9.609e-05,2]
[398810978,1765913165264,150.0,7.011e-05,2]
[398810981,1765913165667,158.56,7.345e-05,2]
[398810982,1765913166062,237.84,7.679e-05,2]
[398810983,1765913167102,317.12,8.013e-05,2]
[398810984,1765913167392,396.39,8.347e-05,2]
[398810985,1765913167787,475.67,8.681e-05,2]
[398810986,1765913168204,554.95,9.014e-05,2]
[398810990,1765913168614,634.23,9.348e-05,2]
[398811006,1765913213131,-353.82423985,9.682e-05,2]
[398811024,1765913243068,150.0,7.281e-05,2]
[398811025,1765913243480,173.91,7.628e-05,2]
[398811028,1765913243879,260.86,7.975e-05,2]
[398811029,1765913244306,347.82,8.321e-05,2]
[398811030,1765913244699,434.77,8.668e-05,2]
[398811031,1765913245137,447.67448238,9.015e-05,2]
[398811032,1765913245165,74.05551762,9.015e-05,2]
[398811033,1765913245571,608.68,9.362e-05,2]
[398811039,1765913251925,177.72532257,9.624e-05,2]
[398811041,1765913254290,417.58610747,9.244e-05,2]
[398811043,1765913256883,299.31421212,9.624e-05,2]
[398811057,1765913282029,154.61,9.6e-05,2]
[398811089,1765913318710,150.0,7.236e-05,2]
[398811090,1765913319120,191.31,7.581e-05,2]
[398811091,1765913319555,286.97,7.925e-05,2]
[398811092,1765913319985,382.63,8.27e-05,2]
[398811095,1765913326704,478.28,8.615e-05,2]
[398811096,1765913326851,573.94,8.959e-05,2]
[398811098,1765913327264,669.6,9.304e-05,2]
[398811107,1765913338216,-765.25,9.648e-05,2]
[398811111,1765913348116,154.6,9.6e-05,2]
[398811143,1765913406812,154.61,9.6e-05,2]
[398811145,1765913409742,150.0,7.538e-05,2]
[398811146,1765913410142,172.46,7.897e-05,2]
[398811147,1765913410527,258.69,8.256e-05,2]
[398811148,1765913410930,344.92,8.615e-05,2]
[398811149,1765913411337,431.15,8.974e-05,2]
[398811150,1765913412215,517.38,9.332e-05,2]
[398811182,1765913431834,-268.46849196,9.687e-05,2]
[398811184,1765913431844,-603.61,9.691e-05,2]
[398811186,1765913431853,-41.60526181,9.697e-05,2]
[398811189,1765913431887,-257.21384806,9.697e-05,2]
[398811191,1765913431897,-300.0,9.73e-05,2]
[398811192,1765913431906,-176.45664922,9.731e-05,2]
[398811193,1765913431915,-328.02135974,9.731e-05,2]
[398811194,1765913431924,-166.98371761,9.731e-05,2]
[398811195,1765913431935,-207.89783638,9.731e-05,2]
[398811196,1765913431944,-301.12552642,9.731e-05,2]
[398811197,1765913431954,-78.15571672,9.731e-05,2]
[398811198,1765913431966,-265.98774205,9.731e-05,2]
[398811199,1765913431975,-396.18956788,9.731e-05,2]
[398811200,1765913431985,-408.96543836,9.899e-05,2]
[398811201,1765913431995,-225.88822211,9.899e-05,2]
[398811202,1765913432004,-736.13778904,9.899e-05,2]
[398811203,1765913432013,-300.0,9.925e-05,2]
[398811204,1765913432023,-300.0,9.925e-05,2]
[398811205,1765913432032,-300.0,9.925e-05,2]
[398811206,1765913432042,-300.0,9.925e-05,2]
[398811207,1765913432051,-300.0,9.925e-05,2]
[398811208,1765913432059,-300.0,9.925e-05,2]
[398811209,1765913432069,-300.0,9.925e-05,2]
[398811210,1765913432078,-300.0,9.925e-05,2]
[398811211,1765913432087,-300.0,9.925e-05,2]
[398811212,1765913432097,-300.0,9.925e-05,2]
[398811213,1765913432106,-300.0,9.925e-05,2]
[398811214,1765913432116,-300.0,9.925e-05,2]
[398811215,1765913432125,-300.0,9.925e-05,2]
[398811216,1765913432138,-300.0,9.925e-05,2]
[398811217,1765913432149,-300.0,9.925e-05,2]
[398811218,1765913432160,-689.84,0.0001005,2]
[398811219,1765913432170,-154.61,0.000101,2]
[398811220,1765913432179,-500.0,0.00010174,2]
[398811221,1765913432188,-500.0,0.00010174,2]
[398811222,1765913432198,-500.0,0.00010174,2]
[398811223,1765913432208,-216.67416864,0.00010174,2]
[398811224,1765913432218,-500.0,0.00010174,2]
[398811225,1765913432227,-245.45164703,0.00010174,2]
[398811226,1765913432236,-1308.68940274,0.00010175,2]
[398811227,1765913432246,-2398.4119403,0.00010331,2]
[398811228,1765913432255,-8914.94817756,0.00010331,2]
[398811229,1765913432264,-776.07,0.00010409,2]
[398811230,1765913432274,-2560.84222213,0.0001046,2]
[398811231,1765913432283,-154.61,0.000105,2]
[398811232,1765913432291,-154.127,0.00010544,2]
[398811233,1765913432300,-1000.0,0.00010653,2]
[398811234,1765913432310,-1000.0,0.00010653,2]
[398811235,1765913432320,-1000.0,0.00010653,2]
[398811236,1765913432329,-1000.0,0.00010653,2]
[398811237,1765913432339,-180.46585928,0.00010653,2]
[398811238,1765913432348,-655.74777181,0.00010653,2]
[398811239,1765913432357,-250.0,0.00010653,2]
[398811240,1765913432366,-250.0,0.00010653,2]
[398811241,1765913432639,-250.0,0.00010653,2]
[398811242,1765913432648,-250.0,0.00010653,2]
[398811243,1765913432658,-250.0,0.00010653,2]
[398811244,1765913432668,-250.0,0.00010653,2]
[398811245,1765913432678,-250.0,0.00010653,2]
[398811246,1765913432687,-303.38362282,0.00010653,2]
[398811247,1765913432696,-250.0,0.00010653,2]
[398811248,1765913432705,-250.0,0.00010653,2]
[398811249,1765913432715,-250.0,0.00010653,2]
[398811250,1765913432725,-250.0,0.00010653,2]
[398811251,1765913432734,-496.47127164,0.00010653,2]
[398811252,1765913432743,-250.0,0.00010653,2]
[398811253,1765913432752,-302.93382747,0.00010653,2]
[398811254,1765913432761,-203.99529451,0.00010653,2]
[398811255,1765913432770,-2896.88243626,0.00010659,2]
[398811291,1765913437934,-1439.54370203,0.00010659,2]
[398811293,1765913437946,-1583.79013717,0.00010659,2]
[398811296,1765913437959,-27589.51940752,0.00010659,2]
[398811299,1765913437987,-14380.43387729,0.00010659,2]
[398811301,1765913437999,-342.33029847,0.00010659,2]
[398811454,1765913440106,-6027.5130443,0.00010659,2]
[398811457,1765913440119,-264.12583363,0.00010659,2]
[398811768,1765913443151,-1236.56016181,0.00010659,2]
[398811773,1765913443162,-694.0900242,0.00010659,2]
[398812015,1765913445981,-193.93907189,0.00010173,2]
[398812017,1765913445991,-1247.36839616,0.00010659,2]
[398812211,1765913447986,-398.0,0.00010659,2]
[398812824,1765913485358,150.0,7.589e-05,2]
[398812825,1765913485700,170.34,7.95e-05,2]
[398812828,1765913486543,255.52,8.312e-05,2]
[398812829,1765913486589,340.69,8.673e-05,2]
[398812830,1765913486935,425.86,9.035e-05,2]
[398812832,1765913487343,511.03,9.396e-05,2]
[398812857,1765913552258,207.02589288,9.587e-05,2]
[398812861,1765913561770,150.0,7.369e-05,2]
[398812862,1765913562219,171.76,7.72e-05,2]
[398812863,1765913562604,257.63,8.071e-05,2]
[398812864,1765913563026,343.51,8.422e-05,2]
[398812865,1765913563431,429.39,8.773e-05,2]
[398812867,1765913563858,515.27,9.124e-05,2]
[398812868,1765913564255,601.15,9.475e-05,2]
[398812880,1765913582988,162.31,9.64e-05,2]
[398812882,1765913584786,33118.0,0.0001,20]
[398812922,1765913637791,150.0,7.392e-05,2]
[398812923,1765913638178,223.99,7.744e-05,2]
[398812924,1765913638619,335.99,8.096e-05,2]
[398812925,1765913639022,447.98,8.448e-05,2]
[398812927,1765913639416,436.25410712,8.8e-05,2]
[398812928,1765913639445,123.72589288,8.8e-05,2]
[398812929,1765913639821,671.97,9.152e-05,2]
[398812930,1765913640233,783.97,9.504e-05,2]
[398812932,1765913642459,162.31,9.6e-05,2]
[398812961,1765913703077,156.68,9.6e-05,2]
[398812962,1765913703962,156.68,9.64e-05,2]
[398812965,1765913714916,150.0,6.946e-05,2]
[398812966,1765913715303,181.61,7.277e-05,2]
[398812971,1765913725088,272.42,7.608e-05,2]
[398812972,1765913725571,363.22,7.939e-05,2]
[398812973,1765913725970,454.03,8.27e-05,2]
[398812976,1765913726365,544.84,8.6e-05,2]
[398812977,1765913726766,635.64,8.931e-05,2]
[398812978,1765913727170,726.45,9.262e-05,2]
[398812979,1765913727606,817.25,9.593e-05,2]
[398812985,1765913762507,154.99,9.6e-05,2]
[398812986,1765913764243,154.98,9.64e-05,2]
[398812994,1765913798939,150.0,7.598e-05,2]
[398812995,1765913799365,150.0,7.96e-05,2]
[398812996,1765913799775,150.0,8.322e-05,2]
[398812997,1765913800162,152.18,8.683e-05,2]
[398812998,1765913800601,190.23,9.045e-05,2]
[398812999,1765913801505,228.27,9.407e-05,2]
[398813004,1765913823699,174.04,9.6e-05,2]
[398813010,1765913871074,150.0,6.985e-05,2]
[398813011,1765913871638,150.0,7.318e-05,2]
[398813012,1765913872382,150.0,7.651e-05,2]
[398813013,1765913872793,150.0,7.983e-05,2]
[398813014,1765913873207,174.23,8.316e-05,2]
[398813015,1765913873639,209.07,8.649e-05,2]
[398813016,1765913874050,243.92,8.981e-05,2]
[398813017,1765913874475,278.76,9.314e-05,2]
[398813018,1765913874904,313.61,9.647e-05,2]
[398813020,1765913885146,164.52,9.6e-05,2]
[398813063,1765913940727,150.0,6.989e-05,2]
[398813064,1765913941138,150.0,7.322e-05,2]
[398813065,1765913941551,10.41410712,7.654e-05,2]
[398813066,1765913941577,139.58589288,7.654e-05,2]
[398813067,1765913941987,150.0,7.987e-05,2]
[398813068,1765913942404,150.0,8.32e-05,2]
[398813069,1765913942816,150.0,8.653e-05,2]
[398813070,1765913943647,222.19,9.6e-05,2]
[398813071,1765913976261,557.0,9.648e-05,2]
[398813072,1765913999541,5000.0,9.648e-05,2]
[398813074,1765914021930,1533.6891496,9.648e-05,2]
[398813075,1765914134762,996.47104294,9.203e-05,2]
[398813107,1765914181962,187.74,9.6e-05,2]
[398813119,1765914427097,-297.27540419,0.00010051,2]
[398813120,1765914427117,-164.82994195,0.00010217,2]
[398813220,1765914601750,173.69115,9.527e-05,2]
[398813238,1765914632104,-327.42375715,9.706e-05,2]
[398813239,1765914632114,-304.73962135,9.706e-05,2]